bitfinex-derivatives/quotes_SOLF0:USTF0_20260208
["timestamp","ask_amount","ask_price","bid_price","bid_amount"]
[1770567090044,25.27531063,87.379,87.304,10.3167]
[1770567091057,25.27531063,87.379,87.317,10.3152]
[1770567091754,25.27531063,87.379,87.303,10.3168]
[1770567092248,25.27531063,87.379,87.314,10.3156]
[1770567092453,25.27531063,87.379,87.297,303.22859117]
[1770567093158,25.27531063,87.379,87.324,10.3143]
[1770567093355,25.27531063,87.379,87.297,303.22859117]
[1770567094049,25.27531063,87.379,87.324,10.3144]
[1770567095444,25.27531063,87.379,87.313,10.3156]
[1770567095654,25.27531063,87.379,87.297,303.22859117]
[1770567095959,8.61919597,87.378,87.297,301.23636543]
[1770567096155,25.23412793,87.376,87.31,10.316]
[1770567098359,25.23412793,87.376,87.322,10.3146]
[1770567098748,25.22025972,87.374,87.322,10.3146]
[1770567098951,25.22025972,87.372,87.322,10.3146]
[1770567099153,25.22025972,87.372,87.31,10.316]
[1770567099858,25.22025972,87.368,87.254,0.52978851]
[1770567100062,25.22025972,87.366,87.254,0.52978851]
[1770567100257,25.22025972,87.364,87.286,1.99279616]
[1770567100452,25.22025972,87.362,87.286,1.99279616]
[1770567100763,25.22594643,87.36,87.298,10.3174]
[1770567104157,25.20534898,87.358,87.298,10.3174]
[1770567106662,25.20534898,87.358,87.307,10.3164]
[1770567107170,25.20534898,87.358,87.286,1.99279616]
[1770567108167,25.20534898,87.358,87.307,10.3164]
[1770567109667,25.20299801,87.408,87.286,1.99279616]
[1770567109867,25.20299801,87.406,87.302,160.4865]
[1770567110066,25.20299801,87.406,87.298,11.42]
[1770567110067,25.20299801,87.404,87.298,11.42]
[1770567110271,447.56584438,87.434,87.298,11.42]
[1770567110272,25.20299801,87.402,87.35,10.3114]
[1770567110471,25.20299801,87.433,87.315,194.7431]
[1770567110768,25.22692702,87.431,87.374,10.3085]
[1770567110960,25.22692702,87.429,87.374,10.3085]
[1770567111163,25.22692702,87.427,87.374,10.3085]
[1770567111359,25.22692702,87.425,87.374,10.3085]
[1770567111968,25.22692702,87.423,87.361,10.31]
[1770567112166,25.22692702,87.421,87.361,10.31]
[1770567112371,25.22692702,87.419,87.361,10.31]
[1770567112568,447.56584438,87.434,87.348,10.3115]
[1770567112569,25.22519615,87.417,87.348,10.3115]
[1770567112775,25.22519615,87.415,87.299,160.493]
[1770567112970,25.22519615,87.413,87.299,160.493]
[1770567113267,25.22519615,87.411,87.343,10.3122]
[1770567113469,25.22519615,87.409,87.343,10.3122]
[1770567113673,25.22519615,87.407,87.343,10.3122]
[1770567113977,25.22519615,87.405,87.354,10.3108]
[1770567114675,25.22519615,87.405,87.293,34.28]
[1770567114875,25.19464537,87.433,87.366,10.3094]
[1770567115068,25.19464537,87.431,87.366,10.3094]
[1770567115270,25.19464537,87.429,87.366,10.3094]
[1770567115573,25.19464537,87.447,87.377,10.3082]
[1770567115762,25.19464537,87.445,87.377,10.3082]
[1770567115962,25.19464537,87.443,87.377,10.3082]
[1770567116265,25.19464537,87.443,87.327,160.4406]
[1770567116266,25.19464537,87.441,87.399,10.3055]
[1770567116462,10.2965,87.477,87.399,10.3055]
[1770567116463,25.20625813,87.458,87.399,10.3055]
[1770567116661,25.20625813,87.458,87.366,160.3695]
[1770567117770,25.20625813,87.458,87.41,10.3043]
[1770567118573,25.21390652,87.456,87.392,10.3063]
[1770567118878,25.21390652,87.454,87.392,10.3063]
[1770567119079,25.21390652,87.452,87.392,10.3063]
[1770567119277,25.21390652,87.45,87.392,10.3063]
[1770567119881,25.21390652,87.448,87.392,10.3063]
[1770567122783,25.19702965,87.446,87.381,10.3077]
[1770567123080,25.19702965,87.444,87.381,10.3077]
[1770567123279,25.19702965,87.442,87.381,10.3077]
[1770567123584,10.2975,87.468,87.381,10.3077]
[1770567123585,25.19702965,87.44,87.381,10.3077]
[1770567125080,25.2176452,87.438,87.381,10.3077]
[1770567125276,25.2176452,87.436,87.381,10.3077]
[1770567126788,25.20591803,87.434,87.37,10.309]
[1770567126988,10.5203234,87.448,87.34,56.0]
[1770567126989,25.20591803,87.432,87.34,56.0]
[1770567127189,25.20591803,87.432,87.347,160.4052]
[1770567127489,25.20591803,87.448,87.347,160.4052]
[1770567127891,25.20591803,87.448,87.363,160.3748]
[1770567128185,25.20591803,87.448,87.365,160.372]
[1770567128385,25.20591803,87.465,87.411,10.3041]
[1770567129486,25.20591803,87.465,87.421,10.3029]
[1770567133892,25.20591803,87.465,87.432,10.3017]
[1770567134391,25.20434443,87.481,87.442,10.3005]
[1770567135888,25.20807797,87.52,87.452,10.2992]
[1770567136093,25.20807797,87.518,87.407,160.2945]
[1770567136294,25.20807797,87.516,87.407,160.2945]
[1770567136888,25.20807797,87.516,87.348,160.403]
[1770567136889,25.20807797,87.516,87.409,160.2914]
[1770567137099,25.20807797,87.516,87.414,34.35]
[1770567137595,25.13797386,87.533,87.424,34.35]
[1770567138300,25.13797386,87.533,87.472,10.2969]
[1770567138498,25.13797386,87.533,87.437,160.2389]
[1770567139001,25.13797386,87.533,87.492,10.2946]
[1770567139605,25.1820093,87.57,87.504,10.2932]
[1770567140097,8.631421,87.569,87.448,303.22477142]
[1770567140296,25.1820093,87.567,87.448,303.22477142]
[1770567140496,25.1820093,87.565,87.46,56.0]
[1770567140809,25.17689354,87.563,87.448,303.22477142]
[1770567141004,8.631421,87.562,87.448,303.22477142]
[1770567141204,33.80831454,87.561,87.448,303.22477142]
[1770567141502,25.17689354,87.559,87.448,303.22477142]
[1770567141700,25.17689354,87.555,87.467,10.2975]
[1770567141900,25.17689354,87.553,87.467,10.2975]
[1770567142095,8.631421,87.554,87.448,303.22477142]
[1770567142096,25.17689354,87.551,87.462,160.1942]
[1770567142297,25.17689354,87.551,87.454,194.5574]
[1770567143606,25.17689354,87.551,87.46,56.0]
[1770567143806,25.17689354,87.551,87.501,10.2935]
[1770567144006,25.17689354,87.551,87.465,160.1883]
[1770567144609,25.17689354,87.551,87.451,20.599]
[1770567144806,25.17689354,87.551,87.452,160.2118]
[1770567145213,25.17689354,87.551,87.492,10.2946]
[1770567149416,25.17689354,87.551,87.505,10.2931]
[1770567150314,25.17689354,87.551,87.515,10.2919]
[1770567150508,25.13424347,87.579,87.515,10.2919]
[1770567151310,25.13424347,87.579,87.504,10.2931]
[1770567151511,25.14051271,87.577,87.461,160.1959]
[1770567151916,25.14051271,87.577,87.507,10.2927]
[1770567152216,25.14051271,87.575,87.507,10.2927]
[1770567152416,25.14051271,87.573,87.507,10.2927]
[1770567153112,25.1448234,87.571,87.496,10.2941]
[1770567153312,25.1448234,87.569,87.496,10.2941]
[1770567153519,25.1448234,87.567,87.496,10.2941]
[1770567153718,25.1448234,87.565,87.496,10.2941]
[1770567153911,25.1448234,87.563,87.496,10.2941]
[1770567154112,25.1448234,87.561,87.496,10.2941]
[1770567154314,25.1448234,87.559,87.496,10.2941]
[1770567154511,25.1448234,87.557,87.496,10.2941]
[1770567155315,25.13394289,87.555,87.496,10.2941]
[1770567157323,25.13078569,87.553,87.496,10.2941]
[1770567158429,25.13078569,87.551,87.496,10.2941]
[1770567159332,25.14563219,87.549,87.496,10.2941]
[1770567161324,25.13406457,87.547,87.496,10.2941]
[1770567165327,25.13406457,87.547,87.442,160.2304]
[1770567165328,25.14347835,87.545,87.483,10.2956]
[1770567165527,25.14347835,87.543,87.483,10.2956]
[1770567165719,25.14356805,87.541,87.483,10.2956]
[1770567165925,25.14356805,87.539,87.483,10.2956]
[1770567166125,25.14356805,87.537,87.483,10.2956]
[1770567166632,25.13382211,87.535,87.483,10.2956]
[1770567166826,25.13382211,87.533,87.483,10.2956]
[1770567168637,25.13382211,87.531,87.483,10.2956]
[1770567170441,25.13341428,87.529,87.483,10.2956]
[1770567171333,25.13806153,87.525,87.404,11.43]
[1770567171536,25.13806153,87.523,87.404,11.43]
[1770567171738,25.13806153,87.521,87.404,11.43]
[1770567171934,25.13806153,87.519,87.404,11.43]
[1770567172126,25.13806153,87.517,87.404,11.43]
[1770567172333,25.13806153,87.515,87.404,11.43]
[1770567172534,25.13806153,87.513,87.407,34.35]
[1770567172734,25.12255167,87.511,87.392,11.43]
[1770567172934,21.15496676,87.542,87.392,11.43]
[1770567172935,25.12255167,87.504,87.392,11.43]
[1770567173136,25.12255167,87.502,87.428,10.3021]
[1770567173340,25.12255167,87.5,87.428,10.3021]
[1770567173540,25.12255167,87.498,87.372,20.6174]
[1770567173841,25.12255167,87.493,87.381,11.43]
[1770567174045,25.12255167,87.488,87.381,11.43]
[1770567174233,25.12255167,87.484,87.381,11.43]
[1770567174436,25.12255167,87.482,87.377,34.35]
[1770567174636,25.12184816,87.48,87.378,11.43]
[1770567174836,25.12184816,87.478,87.405,10.3048]
[1770567175042,25.12184816,87.476,87.405,10.3048]
[1770567175239,25.12184816,87.474,87.405,10.3048]
[1770567175437,25.12184816,87.472,87.405,10.3048]
[1770567175642,25.12184816,87.47,87.405,10.3048]
[1770567175836,25.12184816,87.468,87.405,10.3048]
[1770567176038,25.12184816,87.466,87.405,10.3048]
[1770567176237,25.12184816,87.464,87.405,10.3048]
[1770567176434,25.12184816,87.462,87.405,10.3048]
[1770567176637,25.12990698,87.46,87.405,10.3048]
[1770567176838,8.71078605,87.459,87.394,10.3061]
[1770567177137,25.12990698,87.457,87.394,10.3061]
[1770567177339,10.5203234,87.482,87.41,10.3043]
[1770567177540,25.12990698,87.48,87.41,10.3043]
[1770567177740,25.12990698,87.478,87.41,10.3043]
[1770567177935,25.12990698,87.476,87.41,10.3043]
[1770567178239,8.71051131,87.475,87.376,160.3504]
[1770567178446,25.12990698,87.507,87.393,34.35]
[1770567178644,25.12990698,87.507,87.376,160.3518]
[1770567178845,25.12990698,87.507,87.388,34.35]
[1770567179446,25.12990698,87.507,87.4,34.35]
[1770567180148,25.12990698,87.507,87.398,34.35]
[1770567180847,25.12990698,87.507,87.435,10.3012]
[1770567182443,25.12990698,87.507,87.448,10.2997]
[1770567182944,25.12990698,87.507,87.458,10.2985]
[1770567184944,25.12990698,87.507,87.372,187.43]
[1770567184945,25.12990698,87.507,87.407,34.35]
[1770567185347,25.12990698,87.507,87.436,10.3012]
[1770567185649,25.12990698,87.507,87.407,34.35]
[1770567186051,25.12990698,87.507,87.408,34.35]
[1770567187151,25.12990698,87.507,87.394,34.35]
[1770567188947,25.12990698,87.507,87.44,10.3007]
[1770567189742,25.0937595,87.522,87.427,34.35]
[1770567190040,10.5203234,87.532,87.427,34.35]
[1770567190245,25.0937595,87.554,87.497,10.294]
[1770567190547,25.0937595,87.552,87.497,10.294]
[1770567190741,25.09677429,87.55,87.497,10.294]
[1770567190946,25.09677429,87.548,87.497,10.294]
[1770567191147,25.09677429,87.546,87.497,10.294]
[1770567191451,25.09677429,87.545,87.497,10.294]
[1770567193451,10.5203234,87.572,87.46,56.0]
[1770567193452,25.10957834,87.543,87.482,10.2957]
[1770567193646,25.10957834,87.541,87.482,10.2957]
[1770567193949,24.30841931,87.572,87.482,10.2957]
[1770567193950,25.10957834,87.539,87.482,10.2957]
[1770567194153,25.10957834,87.537,87.482,10.2957]
[1770567194349,25.10957834,87.535,87.482,10.2957]
[1770567194551,25.10957834,87.533,87.482,10.2957]
[1770567194751,25.11005321,87.531,87.482,10.2957]
[1770567194952,25.11005321,87.529,87.467,10.2975]
[1770567195250,25.11005321,87.527,87.467,10.2975]
[1770567195455,25.11005321,87.525,87.467,10.2975]
[1770567195754,25.10973413,87.523,87.467,10.2975]
[1770567195953,10.5203234,87.54,87.467,10.2975]
[1770567195954,25.10973413,87.521,87.467,10.2975]
[1770567196155,25.10973413,87.519,87.467,10.2975]
[1770567196353,25.10973413,87.517,87.467,10.2975]
[1770567196656,25.10973413,87.515,87.467,10.2975]
[1770567200157,25.10987453,87.513,87.467,10.2975]
[1770567200358,25.10987453,87.511,87.457,10.2987]
[1770567200655,25.10987453,87.509,87.444,303.9057984]
[1770567200861,25.05955818,87.507,87.444,303.9057984]
[1770567201051,25.05955818,87.505,87.444,303.9057984]
[1770567201252,25.05955818,87.503,87.444,303.9057984]
[1770567201452,25.05955818,87.501,87.444,303.9057984]
[1770567201658,25.05955818,87.499,87.444,303.9057984]
[1770567201856,8.68838279,87.498,87.449,10.2996]
[1770567202056,8.68356638,87.497,87.449,10.2996]
[1770567202253,25.05955818,87.499,87.449,10.2996]
[1770567202254,8.68356638,87.496,87.449,10.2996]
[1770567202557,25.08767762,87.494,87.449,10.2996]
[1770567202754,33.77009051,87.493,87.449,10.2996]
[1770567203061,8.68241289,87.492,87.449,10.2996]
[1770567203259,25.08767762,87.49,87.444,303.9057984]
[1770567203460,8.68241289,87.489,87.444,303.9057984]
[1770567203655,33.77009051,87.488,87.444,303.9057984]
[1770567203957,25.08767762,87.488,87.444,303.9057984]
[1770567204159,8.68456779,87.487,87.444,303.9057984]
[1770567204360,25.08767762,87.488,87.444,303.9057984]
[1770567204656,25.08767762,87.504,87.45,10.2995]
[1770567204861,25.08536902,87.502,87.45,10.2995]
[1770567205162,25.08536902,87.5,87.45,10.2995]
[1770567205461,25.08536902,87.498,87.45,10.2995]
[1770567205656,25.08536902,87.496,87.45,10.2995]
[1770567205862,14.02311931,87.518,87.45,10.2995]
[1770567205863,25.08536902,87.494,87.45,10.2995]
[1770567206058,25.08536902,87.492,87.45,10.2995]
[1770567206258,25.08536902,87.49,87.45,10.2995]
[1770567206461,10.5203234,87.506,87.45,10.2995]
[1770567206462,25.08536902,87.488,87.45,10.2995]
[1770567206660,8.68943045,87.487,87.45,10.2995]
[1770567206858,8.68943045,87.486,87.45,10.2995]
[1770567207057,25.08536902,87.488,87.45,10.2995]
[1770567207261,25.07716815,87.486,87.45,10.2995]
[1770567207456,14.02311931,87.517,87.45,10.2995]
[1770567207457,33.76981555,87.485,87.45,10.2995]
[1770567207657,25.07716815,87.485,87.45,10.2995]
[1770567208156,25.07716815,87.485,87.444,303.9057984]
[1770567208353,33.7713363,87.484,87.444,303.9057984]
[1770567208562,25.07716815,87.484,87.444,303.9057984]
[1770567209560,8.6955976,87.483,87.444,303.9057984]
[1770567209753,8.6955976,87.482,87.444,303.9057984]
[1770567209951,8.6955976,87.481,87.444,303.9057984]
[1770567210150,8.6955976,87.48,87.444,303.9057984]
[1770567210354,25.07716815,87.484,87.444,303.9057984]
[1770567210556,8.69555553,87.483,87.444,303.9057984]
[1770567210761,8.69555553,87.482,87.444,303.9057984]
[1770567210952,25.07716815,87.484,87.444,303.9057984]
[1770567211262,8.69544522,87.483,87.444,303.9057984]
[1770567211458,8.69544522,87.482,87.444,303.9057984]
[1770567211755,25.07716815,87.484,87.444,303.9057984]
[1770567211960,8.69354119,87.483,87.444,303.9057984]
[1770567212150,8.69354119,87.482,87.444,303.9057984]
[1770567212350,25.07716815,87.484,87.444,303.9057984]
[1770567212560,8.69594793,87.483,87.444,303.9057984]
[1770567212760,8.69594793,87.482,87.444,303.9057984]
[1770567213055,25.07716815,87.484,87.444,303.9057984]
[1770567213255,8.69699286,87.483,87.448,10.2998]
[1770567213460,25.07716815,87.484,87.448,10.2998]
[1770567213664,33.77248246,87.483,87.448,10.2998]
[1770567213863,8.69799043,87.482,87.448,10.2998]
[1770567214160,8.69799043,87.481,87.448,10.2998]
[1770567214355,8.71445575,87.48,87.448,10.2998]
[1770567214553,25.07449203,87.483,87.448,10.2998]
[1770567214757,8.71800166,87.482,87.448,10.2998]
[1770567215060,8.71800166,87.481,87.448,10.2998]
[1770567215259,8.71800166,87.48,87.448,10.2998]
[1770567215459,10.5203234,87.506,87.444,303.9057984]
[1770567215658,25.08224327,87.512,87.444,303.9057984]
[1770567215659,8.71868414,87.505,87.444,303.9057984]
[1770567215869,8.71868414,87.504,87.444,303.9057984]
[1770567216060,25.08224327,87.502,87.444,303.9057984]
[1770567216266,25.08224327,87.498,87.444,303.9057984]
[1770567216560,25.08224327,87.496,87.444,303.9057984]
[1770567216868,25.09018352,87.494,87.444,303.9057984]
[1770567217067,25.09018352,87.492,87.444,303.9057984]
[1770567217369,33.80886766,87.491,87.444,303.9057984]
[1770567217663,33.80886766,87.49,87.444,303.9057984]
[1770567217868,8.71868414,87.489,87.445,10.3001]
[1770567218067,8.71868414,87.488,87.445,10.3001]
[1770567218269,8.71868414,87.487,87.445,10.3001]
[1770567218467,8.71868414,87.486,87.445,10.3001]
[1770567218660,8.71868414,87.485,87.445,10.3001]
[1770567218859,8.71868414,87.484,87.445,10.3001]
[1770567219059,25.09018352,87.489,87.445,10.3001]
[1770567219060,8.71868414,87.483,87.445,10.3001]
[1770567219268,8.71868414,87.482,87.445,10.3001]
[1770567219471,8.71868414,87.481,87.445,10.3001]
[1770567219668,8.71868414,87.48,87.445,10.3001]
[1770567219968,25.09018352,87.489,87.445,10.3001]
[1770567220166,8.7222624,87.488,87.445,10.3001]
[1770567220356,8.7222624,87.487,87.445,10.3001]
[1770567220561,8.7222624,87.486,87.445,10.3001]
[1770567220761,8.7222624,87.485,87.445,10.3001]
[1770567220967,8.7222624,87.484,87.445,10.3001]
[1770567221161,8.7222624,87.483,87.445,10.3001]
[1770567221366,8.7222624,87.482,87.445,10.3001]
[1770567221567,8.7222624,87.481,87.445,10.3001]
[1770567221768,8.7222624,87.48,87.445,10.3001]
[1770567222068,8.7222624,87.479,87.445,10.3001]
[1770567222270,8.7222624,87.478,87.445,10.3001]
[1770567222458,8.7222624,87.477,87.445,10.3001]
[1770567222659,8.7222624,87.476,87.445,10.3001]
[1770567222972,8.7222624,87.475,87.445,10.3001]
[1770567223170,25.09018352,87.489,87.445,10.3001]
[1770567223366,25.0758782,87.487,87.445,10.3001]
[1770567223568,25.0758782,87.485,87.445,10.3001]
[1770567223872,8.72788096,87.484,87.445,10.3001]
[1770567224173,8.72788096,87.483,87.445,10.3001]
[1770567224380,8.72788096,87.482,87.445,10.3001]
[1770567224569,8.72788096,87.481,87.445,10.3001]
[1770567224766,8.72788096,87.48,87.445,10.3001]
[1770567224968,8.72788096,87.479,87.445,10.3001]
[1770567225170,8.72788096,87.478,87.445,10.3001]
[1770567225369,8.72788096,87.477,87.445,10.3001]
[1770567225664,8.72788096,87.476,87.445,10.3001]
[1770567225861,25.0758782,87.484,87.445,10.3001]
[1770567226073,8.72841076,87.483,87.445,10.3001]
[1770567226268,8.72841076,87.482,87.445,10.3001]
[1770567226474,8.72841076,87.481,87.445,10.3001]
[1770567226671,8.72841076,87.48,87.445,10.3001]
[1770567226976,8.72841076,87.479,87.445,10.3001]
[1770567227174,8.72841076,87.478,87.445,10.3001]
[1770567227475,8.72841076,87.477,87.445,10.3001]
[1770567227775,8.72841076,87.476,87.445,10.3001]
[1770567227967,8.72841076,87.475,87.445,10.3001]
[1770567228273,8.72841076,87.474,87.445,10.3001]
[1770567228472,25.08049959,87.483,87.445,10.3001]
[1770567228668,25.0865898,87.481,87.445,10.3001]
[1770567228875,8.7297946,87.48,87.445,10.3001]
[1770567229076,8.7297946,87.479,87.445,10.3001]
[1770567229271,8.7297946,87.478,87.445,10.3001]
[1770567229476,8.7297946,87.477,87.445,10.3001]
[1770567229674,8.7297946,87.476,87.444,303.9057984]
[1770567229876,8.7297946,87.475,87.444,303.9057984]
[1770567230076,8.7297946,87.474,87.444,303.9057984]
[1770567230374,8.7297946,87.473,87.444,303.9057984]
[1770567230678,8.7297946,87.472,87.444,303.9057984]
[1770567230870,8.7297946,87.471,87.444,303.9057984]
[1770567231070,25.0865898,87.481,87.444,303.9057984]
[1770567231071,8.7297946,87.47,87.444,303.9057984]
[1770567231271,8.72647348,87.469,87.444,303.9057984]
[1770567231574,25.0865898,87.481,87.444,303.9057984]
[1770567231878,25.08304413,87.467,87.42,10.3031]
[1770567232077,25.08304413,87.465,87.42,10.3031]
[1770567232665,25.0737253,87.463,87.42,10.3031]
[1770567234674,25.07544441,87.461,87.42,10.3031]
[1770567234980,25.07544441,87.459,87.42,10.3031]
[1770567235178,25.07544441,87.457,87.42,10.3031]
[1770567235478,8.72717827,87.456,87.42,10.3031]
[1770567235780,8.72717827,87.455,87.42,10.3031]
[1770567235974,25.07544441,87.457,87.42,10.3031]
[1770567236172,8.72877334,87.456,87.42,10.3031]
[1770567236377,8.72877334,87.455,87.42,10.3031]
[1770567236577,8.72877334,87.454,87.42,10.3031]
[1770567236879,25.07544441,87.457,87.42,10.3031]
[1770567237080,8.73180576,87.456,87.42,10.3031]
[1770567237282,8.73180576,87.455,87.42,10.3031]
[1770567237482,8.73180576,87.454,87.42,10.3031]
[1770567237673,8.73180576,87.453,87.42,10.3031]
[1770567237874,8.73180576,87.452,87.42,10.3031]
[1770567238174,8.74355276,87.451,87.42,10.3031]
[1770567238375,25.07442793,87.449,87.362,11.43]
[1770567238574,21.15496676,87.487,87.362,11.43]
[1770567238575,35.64238156,87.447,87.362,11.43]
[1770567238776,25.12205816,87.445,87.362,11.43]
[1770567239082,25.12205816,87.443,87.362,11.43]
[1770567239281,25.12205816,87.441,87.362,11.43]
[1770567239481,25.12205816,87.439,87.358,11.43]
[1770567239678,10.5203234,87.446,87.358,11.43]
[1770567239679,25.12205816,87.437,87.358,11.43]
[1770567239982,25.12205816,87.435,87.358,11.43]
[1770567240182,25.12205816,87.433,87.358,11.43]
[1770567240380,25.12205816,87.431,87.345,11.43]
[1770567240583,25.12205816,87.429,87.347,45.78]
[1770567240783,8.74355276,87.428,87.347,45.78]
[1770567240983,8.74355276,87.427,87.347,45.78]
[1770567241184,25.08648513,87.425,87.347,11.43]
[1770567241387,25.08648513,87.423,87.347,319.31150144]
[1770567241584,25.08648513,87.421,87.347,319.31150144]
[1770567241783,8.74355276,87.42,87.373,10.3086]
[1770567242089,25.08648513,87.435,87.373,10.3086]
[1770567242286,25.08648513,87.46,87.396,10.3059]
[1770567242585,8.73453634,87.459,87.364,34.35]
[1770567242784,8.73453634,87.458,87.364,34.35]
[1770567242983,8.73453634,87.457,87.364,34.35]
[1770567243181,8.73453634,87.456,87.364,34.35]
[1770567243382,25.08705006,87.454,87.364,34.35]
[1770567243686,10.2959,87.482,87.357,20.621]
[1770567243687,25.08705006,87.452,87.365,34.35]
[1770567243980,8.73453634,87.451,87.365,34.35]
[1770567244180,8.73453634,87.45,87.365,34.35]
[1770567244385,10.2959,87.482,87.347,319.31150144]
[1770567244386,25.08705006,87.448,87.391,10.3065]
[1770567244584,25.08705006,87.446,87.391,10.3065]
[1770567244778,25.14627242,87.444,87.391,10.3065]
[1770567244980,33.88080876,87.443,87.391,10.3065]
[1770567245182,8.73453634,87.442,87.391,10.3065]
[1770567245484,25.14627242,87.44,87.391,10.3065]
[1770567245676,8.73453634,87.441,87.391,10.3065]
[1770567245677,25.14627242,87.438,87.391,10.3065]
[1770567245880,8.73453634,87.437,87.391,10.3065]
[1770567246188,8.73453634,87.437,87.361,11.43]
[1770567246189,25.14627242,87.435,87.361,11.43]
[1770567246390,25.14627242,87.433,87.361,11.43]
[1770567246588,25.14627242,87.431,87.361,11.43]
[1770567246788,10.5203234,87.433,87.347,307.88150144]
[1770567246789,25.11463313,87.429,87.362,11.43]
[1770567246988,25.11463313,87.427,87.362,11.43]
[1770567247186,25.11463313,87.425,87.358,10.3103]
[1770567247388,25.11463313,87.423,87.358,10.3103]
[1770567247590,8.73453634,87.422,87.368,10.3092]
[1770567247792,25.11463313,87.423,87.368,10.3092]
[1770567247793,8.73453634,87.421,87.368,10.3092]
[1770567247993,8.73453634,87.42,87.368,10.3092]
[1770567248297,8.73453634,87.419,87.368,10.3092]
[1770567248487,8.73453634,87.418,87.368,10.3092]
[1770567248692,25.11463313,87.423,87.368,10.3092]
[1770567248884,8.70145846,87.422,87.368,10.3092]
[1770567249086,8.70145846,87.421,87.368,10.3092]
[1770567249386,25.14417835,87.443,87.378,10.308]
[1770567249588,25.14417835,87.441,87.378,10.308]
[1770567249785,10.2993,87.453,87.378,10.308]
[1770567249786,25.14417835,87.439,87.378,10.308]
[1770567250093,25.14417835,87.437,87.378,10.308]
[1770567250288,25.14417835,87.435,87.378,10.308]
[1770567250484,25.14417835,87.433,87.378,10.308]
[1770567250688,25.14375927,87.431,87.378,10.308]
[1770567250890,8.69346023,87.43,87.378,10.308]
[1770567251184,25.14375927,87.431,87.378,10.308]
[1770567251185,8.69346023,87.429,87.378,10.308]
[1770567251386,25.14375927,87.446,87.387,10.3069]
[1770567251584,8.69489047,87.445,87.348,34.35]
[1770567251779,8.69489047,87.444,87.348,34.35]
[1770567251985,25.14375927,87.442,87.348,34.35]
[1770567252182,25.14375927,87.44,87.348,34.35]
[1770567252387,25.14375927,87.438,87.348,34.35]
[1770567252788,25.1361878,87.436,87.374,10.3085]
[1770567253087,25.1361878,87.434,87.374,10.3085]
[1770567253286,25.1361878,87.434,87.347,307.88150144]
[1770567253287,10.62817426,87.431,87.347,307.88150144]
[1770567253482,25.1361878,87.424,87.347,307.88150144]
[1770567253683,25.1361878,87.422,87.347,307.88150144]
[1770567253884,25.1361878,87.42,87.347,307.88150144]
[1770567254088,10.62817426,87.426,87.347,307.88150144]
[1770567254089,25.1361878,87.418,87.347,307.88150144]
[1770567254304,25.1361878,87.416,87.347,307.88150144]
[1770567254594,21.15496676,87.45,87.347,307.88150144]
[1770567254595,25.1361878,87.414,87.347,307.88150144]
[1770567254796,25.10718372,87.412,87.363,10.3098]
[1770567255095,25.10718372,87.41,87.363,10.3098]
[1770567255290,25.10718372,87.408,87.363,10.3098]
[1770567255594,25.10718372,87.406,87.363,10.3098]
[1770567259092,25.11448067,87.419,87.374,10.3084]
[1770567259296,25.11448067,87.417,87.374,10.3084]
[1770567259489,25.11448067,87.415,87.374,10.3084]
[1770567260795,25.11448067,87.415,87.362,10.3098]
[1770567260990,25.08186636,87.413,87.362,10.3098]
[1770567261194,25.08186636,87.411,87.362,10.3098]
[1770567261596,25.08186636,87.409,87.362,10.3098]
[1770567262483,25.08186636,87.409,87.352,10.3111]
[1770567262687,25.09781845,87.407,87.352,10.3111]
[1770567263087,25.09781845,87.407,87.364,10.3096]
[1770567263592,25.09781845,87.407,87.353,10.3109]
[1770567263800,25.09781845,87.405,87.353,10.3109]
[1770567264002,8.66171221,87.404,87.347,307.88150144]
[1770567264301,25.09781845,87.402,87.347,307.88150144]
[1770567265996,8.65973262,87.401,87.349,10.3114]
[1770567266198,25.09400911,87.399,87.349,10.3114]
[1770567269191,25.09400911,87.399,87.347,307.88150144]
[1770567269395,25.09400911,87.399,87.357,10.3104]
[1770567270193,25.09400911,87.399,87.347,307.88150144]
[1770567271595,25.08594607,87.413,87.347,307.88150144]
[1770567271903,8.65833954,87.412,87.347,307.88150144]
[1770567272201,25.08594607,87.413,87.347,307.88150144]
[1770567272401,8.66081909,87.412,87.347,307.88150144]
[1770567272598,25.07928148,87.412,87.347,307.88150144]
[1770567272803,25.07928148,87.412,87.36,10.3101]
[1770567274296,8.66177344,87.411,87.36,10.3101]